fUSD/lending_fUSD_20260510
["ID","MTS","AMOUNT","RATE_DAILY","PERIOD"]
[421985212,1778404285000,381.1896353,9.613e-05,2]
[421985211,1778404285000,500.0,9.613e-05,2]
[421985213,1778404321000,2417.9713647,9.614e-05,2]
[421985214,1778404321000,10000.01,9.614e-05,2]
[421985215,1778404321000,10000.01,9.614e-05,2]
[421985217,1778404321000,10000.01,9.614e-05,2]
[421985219,1778404321000,10000.01,9.614e-05,2]
[421985216,1778404321000,10000.01,9.614e-05,2]
[421985221,1778404321000,10000.01,9.614e-05,2]
[421985222,1778404321000,10000.01,9.614e-05,2]
[421985224,1778404321000,10000.01,9.614e-05,2]
[421985223,1778404321000,10000.01,9.614e-05,2]
[421985225,1778404321000,10000.01,9.614e-05,2]
[421985218,1778404321000,10000.01,9.614e-05,2]
[421985220,1778404321000,10000.01,9.614e-05,2]
[421985226,1778404481000,643.882462,0.00026852,120]
[421985227,1778404521000,500.0,9.514e-05,2]
[421985228,1778404539000,306.659923,0.0002527,120]
[421985229,1778404541000,4500.01,9.514e-05,2]
[421985230,1778404591000,3029.39028112,9.504e-05,2]
[421985231,1778404622000,248.2817,0.00022923,120]
[421985237,1778405012000,555.0,0.00027397,120]
[421985239,1778405144000,500.0,9.413e-05,2]
[421985240,1778405301000,155.5534,9.413e-05,2]
[421985314,1778405512000,-186.06,0.00012482,2]
[421985286,1778405512000,-151.0,0.0001,2]
[421985282,1778405512000,-151.0,0.0001,2]
[421985285,1778405512000,-151.0,0.0001,2]
[421985284,1778405512000,-151.0,0.0001,2]
[421985283,1778405512000,-151.0,0.0001,2]
[421985281,1778405512000,-151.0,0.0001,2]
[421985278,1778405512000,-151.0,0.0001,2]
[421985279,1778405512000,-151.0,0.0001,2]
[421985277,1778405512000,-151.0,0.0001,2]
[421985280,1778405512000,-151.0,0.0001,2]
[421985275,1778405512000,-200.0,0.0001,2]
[421985271,1778405512000,-1000.0,9.914e-05,2]
[421985272,1778405512000,-150.99,9.914e-05,2]
[421985273,1778405512000,-2302.76,9.914e-05,2]
[421985274,1778405512000,-999.99,9.914e-05,2]
[421985270,1778405512000,-500.0,9.893e-05,2]
[421985269,1778405512000,-750.0,9.711e-05,2]
[421985266,1778405512000,-431.24329281,9.613e-05,2]
[421985265,1778405512000,-205215.0631,9.514e-05,2]
[421985267,1778405512000,-9867.3995,9.615e-05,2]
[421985264,1778405512000,-250.0,9.513e-05,2]
[421985268,1778405512000,-1688.7914,9.615e-05,2]
[421985316,1778405512000,-2807.55,0.0001268,2]
[421985287,1778405512000,-151.0,0.0001,2]
[421985288,1778405512000,-151.0,0.0001,2]
[421985276,1778405512000,-151.0,0.0001,2]
[421985291,1778405512000,-151.0,0.0001,2]
[421985290,1778405512000,-151.0,0.0001,2]
[421985315,1778405512000,-165.27,0.00012669,2]
[421985313,1778405512000,-150.0,0.00012393,2]
[421985312,1778405512000,-2000.0,0.00012393,2]
[421985310,1778405512000,-160.63,0.00012329,2]
[421985309,1778405512000,-2667.82,0.00012264,2]
[421985308,1778405512000,-200.0,0.00012247,2]
[421985307,1778405512000,-169.63,0.00012197,2]
[421985306,1778405512000,-150.0,0.00012,2]
[421985305,1778405512000,-500.0,0.00011986,2]
[421985304,1778405512000,-202.7575358,0.00011096,2]
[421985300,1778405512000,-250.0,0.00010464,2]
[421985311,1778405512000,-2807.55,0.0001237,2]
[421985292,1778405512000,-295.14425374,0.0001,2]
[421985298,1778405512000,-1418.37489951,0.00010464,2]
[421985303,1778405512000,-500.0,0.00010959,2]
[421985301,1778405512000,-250.0,0.00010464,2]
[421985302,1778405512000,-200.0,0.00010548,2]
[421985296,1778405512000,-568.85131895,0.00010441,2]
[421985294,1778405512000,-151.0,0.0001,2]
[421985297,1778405512000,-339.13956146,0.00010464,2]
[421985295,1778405512000,-9999.99,0.0001,2]
[421985293,1778405512000,-151.0,0.0001,2]
[421985289,1778405512000,-151.0,0.0001,2]
[421985299,1778405512000,-500.0,0.00010464,2]
[421985357,1778405513000,-500.0,0.00013699,2]
[421985352,1778405513000,-500.0,0.00013699,2]
[421985355,1778405513000,-500.0,0.00013699,2]
[421985348,1778405513000,-500.0,0.00013698,2]
[421985345,1778405513000,-500.0,0.00013698,2]
[421985349,1778405513000,-200.0,0.00013699,2]
[421985350,1778405513000,-2500.0,0.00013699,2]
[421985347,1778405513000,-500.0,0.00013698,2]
[421985344,1778405513000,-500.0,0.00013698,2]
[421985353,1778405513000,-500.0,0.00013699,2]
[421985351,1778405513000,-500.0,0.00013699,2]
[421985354,1778405513000,-500.0,0.00013699,2]
[421985363,1778405513000,-500.0,0.00013699,2]
[421985359,1778405513000,-500.0,0.00013699,2]
[421985360,1778405513000,-500.0,0.00013699,2]
[421985358,1778405513000,-500.0,0.00013699,2]
[421985361,1778405513000,-500.0,0.00013699,2]
[421985362,1778405513000,-500.0,0.00013699,2]
[421985366,1778405513000,-500.0,0.00013699,2]
[421985365,1778405513000,-390.15490272,0.00013699,2]
[421985368,1778405513000,-169.63,0.00013722,2]
[421985364,1778405513000,-500.0,0.00013699,2]
[421985367,1778405513000,-165.27,0.00013714,2]
[421985370,1778405513000,-150.0,0.00013748,2]
[421985356,1778405513000,-500.0,0.00013699,2]
[421985346,1778405513000,-500.0,0.00013698,2]
[421985317,1778405513000,-150.0,0.00012843,2]
[421985343,1778405513000,-500.0,0.00013698,2]
[421985369,1778405513000,-1085.18143743,0.00013733,2]
[421985318,1778405513000,-150.0,0.00012843,2]
[421985319,1778405513000,-150.0,0.00012843,2]
[421985320,1778405513000,-150.0,0.00012843,2]
[421985321,1778405513000,-2807.55,0.00012989,2]
[421985325,1778405513000,-150.0,0.00013488,2]
[421985322,1778405513000,-1085.18143743,0.00013265,2]
[421985326,1778405513000,-150.0,0.00013488,2]
[421985324,1778405513000,-585.72,0.00013417,2]
[421985327,1778405513000,-250.23673418,0.00013488,2]
[421985323,1778405513000,-2807.55,0.00013298,2]
[421985328,1778405513000,-150.0,0.00013488,2]
[421985330,1778405513000,-1085.18143743,0.00013495,2]
[421985329,1778405513000,-150.0,0.00013488,2]
[421985331,1778405513000,-1085.18143743,0.0001355,2]
[421985332,1778405513000,-150.0,0.00013553,2]
[421985333,1778405513000,-150.0,0.00013581,2]
[421985337,1778405513000,-500.0,0.0001368,2]
[421985334,1778405513000,-2807.55,0.00013607,2]
[421985338,1778405513000,-150.0,0.00013683,2]
[421985336,1778405513000,-150.0,0.00013675,2]
[421985335,1778405513000,-150.0,0.00013618,2]
[421985339,1778405513000,-646.89,0.00013698,2]
[421985342,1778405513000,-500.0,0.00013698,2]
[421985341,1778405513000,-500.0,0.00013698,2]
[421985340,1778405513000,-646.89,0.00013698,2]
[421985371,1778405513000,-150.0,0.00013769,2]
[421985374,1778405513000,-1085.18143743,0.00013824,2]
[421985426,1778405513000,-76025.3499986,0.0001458,2]
[421985402,1778405513000,-150.0,0.00014518,2]
[421985404,1778405513000,-239.55837554,0.00014579,2]
[421985405,1778405513000,-500.0,0.00014579,2]
[421985406,1778405513000,-500.0,0.00014579,2]
[421985409,1778405513000,-500.0,0.00014579,2]
[421985407,1778405513000,-500.0,0.00014579,2]
[421985408,1778405513000,-500.0,0.00014579,2]
[421985410,1778405513000,-500.0,0.00014579,2]
[421985413,1778405513000,-306.39775539,0.00014579,2]
[421985411,1778405513000,-500.0,0.00014579,2]
[421985415,1778405513000,-646.89,0.00014579,2]
[421985400,1778405513000,-150.0,0.00014465,2]
[421985414,1778405513000,-646.89,0.00014579,2]
[421985417,1778405513000,-500.0,0.00014579,2]
[421985419,1778405513000,-500.0,0.00014579,2]
[421985418,1778405513000,-500.0,0.00014579,2]
[421985420,1778405513000,-515.95171291,0.00014579,2]
[421985421,1778405513000,-275456.1834648,0.0001458,2]
[421985425,1778405513000,-21104.5839633,0.0001458,2]
[421985424,1778405513000,-30762.75238431,0.0001458,2]
[421985423,1778405513000,-89530.08920899,0.0001458,2]
[421985373,1778405513000,-150.0,0.00013813,2]
[421985427,1778405513000,-150.0,0.00014595,2]
[421985422,1778405513000,-3491.557439,0.0001458,2]
[421985416,1778405513000,-500.0,0.00014579,2]
[421985401,1778405513000,-5000.0,0.0001448,2]
[421985412,1778405513000,-254.21715211,0.00014579,2]
[421985398,1778405513000,-150.0,0.000144,2]
[421985372,1778405513000,-150.0,0.00013787,2]
[421985403,1778405513000,-150.0,0.0001453,2]
[421985376,1778405513000,-150.0,0.00013862,2]
[421985377,1778405513000,-150.0,0.00013879,2]
[421985378,1778405513000,-2000.0,0.00013942,2]
[421985379,1778405513000,-150.0,0.00013944,2]
[421985380,1778405513000,-150.0,0.00013956,2]
[421985383,1778405513000,-150.0,0.0001405,2]
[421985384,1778405513000,-150.0,0.00014074,2]
[421985381,1778405513000,-250.0,0.00014,2]
[421985382,1778405513000,-150.0,0.00014009,2]
[421985385,1778405513000,-150.0,0.00014087,2]
[421985386,1778405513000,-500.0,0.00014109,2]
[421985375,1778405513000,-1085.18143743,0.00013825,2]
[421985388,1778405513000,-150.0,0.00014139,2]
[421985387,1778405513000,-169.1,0.00014113,2]
[421985395,1778405513000,-150.0,0.00014331,2]
[421985394,1778405513000,-536.898957,0.00014288,2]
[421985396,1778405513000,-150.0,0.00014335,2]
[421985393,1778405513000,-150.0,0.0001427,2]
[421985399,1778405513000,-150.0,0.00014424,2]
[421985392,1778405513000,-150.0,0.00014237,2]
[421985390,1778405513000,-150.0,0.00014204,2]
[421985391,1778405513000,-1000.0,0.00014228,2]
[421985389,1778405513000,-150.0,0.00014143,2]
[421985397,1778405513000,-150.0,0.00014387,2]
[421985464,1778405514000,-151.0,0.00014997,2]
[421985452,1778405514000,-10000.0,0.000149,2]
[421985456,1778405514000,-173.139255,0.000149,2]
[421985460,1778405514000,-150.0,0.00014921,2]
[421985458,1778405514000,-151.0,0.000149,2]
[421985457,1778405514000,-151.0,0.000149,2]
[421985455,1778405514000,-173.139255,0.000149,2]
[421985459,1778405514000,-151.0,0.000149,2]
[421985461,1778405514000,-224.26967913,0.00014986,2]
[421985462,1778405514000,-150.0,0.00014986,2]
[421985463,1778405514000,-150.0,0.00014986,2]
[421985471,1778405514000,-500.0,0.00014999,2]
[421985465,1778405514000,-151.0,0.00014997,2]
[421985468,1778405514000,-500.0,0.00014999,2]
[421985469,1778405514000,-500.0,0.00014999,2]
[421985467,1778405514000,-500.0,0.00014999,2]
[421985470,1778405514000,-500.0,0.00014999,2]
[421985472,1778405514000,-500.0,0.00014999,2]
[421985473,1778405514000,-500.0,0.00014999,2]
[421985474,1778405514000,-509.43717845,0.00014999,2]
[421985475,1778405514000,-500.0,0.00014999,2]
[421985454,1778405514000,-173.139255,0.000149,2]
[421985466,1778405514000,-500.0,0.00014999,2]
[421985453,1778405514000,-173.139255,0.000149,2]
[421985477,1778405514000,-500.0,0.00014999,2]
[421985448,1778405514000,-387.49750058,0.000149,2]
[421985429,1778405514000,-150.0,0.00014661,2]
[421985428,1778405514000,-150.0,0.00014612,2]
[421985430,1778405514000,-150.0,0.00014687,2]
[421985432,1778405514000,-268.116,0.000147,2]
[421985431,1778405514000,-3642.593,0.000147,2]
[421985433,1778405514000,-150.0,0.00014705,2]
[421985438,1778405514000,-150.0,0.00014799,2]
[421985436,1778405514000,-1500.0,0.00014776,2]
[421985437,1778405514000,-150.0,0.00014791,2]
[421985439,1778405514000,-6177.65183422,0.000148,2]
[421985451,1778405514000,-151.0,0.000149,2]
[421985435,1778405514000,-165.27,0.0001476,2]
[421985440,1778405514000,-56841.69246987,0.0001485,2]
[421985443,1778405514000,-150.0,0.00014893,2]
[421985444,1778405514000,-500.0,0.00014899,2]
[421985442,1778405514000,-150.0,0.00014856,2]
[421985441,1778405514000,-26468.33645294,0.0001485,2]
[421985445,1778405514000,-959.41321751,0.000149,2]
[421985450,1778405514000,-151.0,0.000149,2]
[421985446,1778405514000,-151.0,0.000149,2]
[421985449,1778405514000,-151.0,0.000149,2]
[421985447,1778405514000,-151.0,0.000149,2]
[421985434,1778405514000,-150.0,0.00014726,2]
[421985476,1778405514000,-500.0,0.00014999,2]
[421985483,1778405514000,-500.0,0.00014999,2]
[421985482,1778405514000,-501.09437893,0.00014999,2]
[421985505,1778405514000,-646.89,0.00014999,2]
[421985511,1778405514000,-646.89,0.00014999,2]
[421985510,1778405514000,-646.89,0.00014999,2]
[421985508,1778405514000,-646.89,0.00014999,2]
[421985512,1778405514000,-646.89,0.00014999,2]
[421985509,1778405514000,-646.89,0.00014999,2]
[421985516,1778405514000,-646.89,0.00014999,2]
[421985517,1778405514000,-509.68714748,0.00014999,2]
[421985514,1778405514000,-646.89,0.00014999,2]
[421985515,1778405514000,-646.89,0.00014999,2]
[421985507,1778405514000,-646.89,0.00014999,2]
[421985513,1778405514000,-646.89,0.00014999,2]
[421985519,1778405514000,-500.0,0.00014999,2]
[421985521,1778405514000,-500.0,0.00014999,2]
[421985522,1778405514000,-500.0,0.00014999,2]
[421985520,1778405514000,-500.0,0.00014999,2]
[421985523,1778405514000,-500.0,0.00014999,2]
[421985524,1778405514000,-500.0,0.00014999,2]
[421985526,1778405514000,-500.0,0.00014999,2]
[421985529,1778405514000,-500.0,0.00014999,2]
[421985525,1778405514000,-500.0,0.00014999,2]
[421985478,1778405514000,-500.0,0.00014999,2]
[421985518,1778405514000,-500.0,0.00014999,2]
[421985504,1778405514000,-646.89,0.00014999,2]
[421985528,1778405514000,-500.0,0.00014999,2]
[421985502,1778405514000,-646.89,0.00014999,2]
[421985506,1778405514000,-646.89,0.00014999,2]
[421985481,1778405514000,-500.0,0.00014999,2]
[421985479,1778405514000,-500.0,0.00014999,2]
[421985480,1778405514000,-500.0,0.00014999,2]
[421985527,1778405514000,-560.52710577,0.00014999,2]
[421985487,1778405514000,-500.0,0.00014999,2]
[421985485,1778405514000,-500.0,0.00014999,2]
[421985488,1778405514000,-500.0,0.00014999,2]
[421985486,1778405514000,-500.0,0.00014999,2]
[421985489,1778405514000,-500.0,0.00014999,2]
[421985490,1778405514000,-508.180674,0.00014999,2]
[421985484,1778405514000,-500.0,0.00014999,2]
[421985492,1778405514000,-500.0,0.00014999,2]
[421985491,1778405514000,-500.0,0.00014999,2]
[421985499,1778405514000,-500.0,0.00014999,2]
[421985500,1778405514000,-500.0,0.00014999,2]
[421985498,1778405514000,-500.0,0.00014999,2]
[421985501,1778405514000,-237.95833529,0.00014999,2]
[421985494,1778405514000,-500.0,0.00014999,2]
[421985493,1778405514000,-500.0,0.00014999,2]
[421985495,1778405514000,-500.0,0.00014999,2]
[421985496,1778405514000,-500.0,0.00014999,2]
[421985497,1778405514000,-500.0,0.00014999,2]
[421985503,1778405514000,-646.89,0.00014999,2]
[421985556,1778405515000,-500.0,0.00014999,2]
[421985555,1778405515000,-500.0,0.00014999,2]
[421985564,1778405515000,-500.0,0.00014999,2]
[421985554,1778405515000,-500.0,0.00014999,2]
[421985557,1778405515000,-500.0,0.00014999,2]
[421985558,1778405515000,-500.0,0.00014999,2]
[421985559,1778405515000,-500.0,0.00014999,2]
[421985561,1778405515000,-500.0,0.00014999,2]
[421985560,1778405515000,-500.0,0.00014999,2]
[421985565,1778405515000,-500.0,0.00014999,2]
[421985562,1778405515000,-500.0,0.00014999,2]
[421985567,1778405515000,-500.0,0.00014999,2]
[421985566,1778405515000,-612.12,0.00014999,2]
[421985569,1778405515000,-500.0,0.00014999,2]
[421985568,1778405515000,-500.0,0.00014999,2]
[421985572,1778405515000,-500.0,0.00014999,2]
[421985570,1778405515000,-500.0,0.00014999,2]
[421985553,1778405515000,-500.0,0.00014999,2]
[421985575,1778405515000,-500.0,0.00014999,2]
[421985563,1778405515000,-500.0,0.00014999,2]
[421985550,1778405515000,-500.0,0.00014999,2]
[421985536,1778405515000,-500.0,0.00014999,2]
[421985551,1778405515000,-500.0,0.00014999,2]
[421985574,1778405515000,-500.0,0.00014999,2]
[421985532,1778405515000,-500.0,0.00014999,2]
[421985534,1778405515000,-500.0,0.00014999,2]
[421985531,1778405515000,-500.0,0.00014999,2]
[421985530,1778405515000,-500.0,0.00014999,2]
[421985533,1778405515000,-500.0,0.00014999,2]
[421985535,1778405515000,-500.0,0.00014999,2]
[421985537,1778405515000,-507.19084567,0.00014999,2]
[421985539,1778405515000,-500.0,0.00014999,2]
[421985549,1778405515000,-500.0,0.00014999,2]
[421985538,1778405515000,-1059.59351199,0.00014999,5]
[421985541,1778405515000,-500.0,0.00014999,2]
[421985542,1778405515000,-500.0,0.00014999,2]
[421985544,1778405515000,-500.0,0.00014999,2]
[421985546,1778405515000,-500.0,0.00014999,2]
[421985543,1778405515000,-500.0,0.00014999,2]
[421985545,1778405515000,-506.67968673,0.00014999,2]
[421985547,1778405515000,-500.0,0.00014999,2]
[421985552,1778405515000,-500.0,0.00014999,2]
[421985548,1778405515000,-500.0,0.00014999,2]
[421985540,1778405515000,-500.0,0.00014999,2]
[421985573,1778405515000,-500.0,0.00014999,2]
[421985571,1778405515000,-284.83695705,0.00014999,2]
[421985578,1778405515000,-500.0,0.00014999,2]
[421985601,1778405515000,-151.0,0.00015,2]
[421985604,1778405515000,-173.139255,0.00015,2]
[421985605,1778405515000,-173.139255,0.00015,2]
[421985606,1778405515000,-173.139255,0.00015,2]
[421985608,1778405515000,-151.0,0.00015,2]
[421985609,1778405515000,-151.0,0.00015,2]
[421985612,1778405515000,-682.06033118,0.00015324,2]
[421985611,1778405515000,-169.63,0.00015247,2]
[421985610,1778405515000,-585.72,0.00015094,2]
[421985602,1778405515000,-151.0,0.00015,2]
[421985607,1778405515000,-151.0,0.00015,2]
[421985617,1778405515000,-646.89,0.00015988,2]
[421985616,1778405515000,-646.89,0.00015988,2]
[421985614,1778405515000,-160.0,0.00015378,2]
[421985618,1778405515000,-646.89,0.00015988,2]
[421985620,1778405515000,-647.10857943,0.00015988,2]
[421985619,1778405515000,-646.89,0.00015988,2]
[421985622,1778405515000,-8964.66567605,0.00015989,2]
[421985621,1778405515000,-500.0,0.00015988,2]
[421985577,1778405515000,-500.0,0.00014999,2]
[421985613,1778405515000,-214.7734975,0.00015378,2]
[421985603,1778405515000,-173.139255,0.00015,2]
[421985615,1778405515000,-2000.0,0.00015491,2]
[421985596,1778405515000,-151.0,0.00015,2]
[421985576,1778405515000,-500.0,0.00014999,2]
[421985600,1778405515000,-151.0,0.00015,2]
[421985579,1778405515000,-500.0,0.00014999,2]
[421985580,1778405515000,-500.0,0.00014999,2]
[421985582,1778405515000,-500.0,0.00014999,2]
[421985583,1778405515000,-500.0,0.00014999,2]
[421985586,1778405515000,-500.0,0.00014999,2]
[421985587,1778405515000,-140295.99357684,0.00015,2]
[421985584,1778405515000,-500.0,0.00014999,2]
[421985585,1778405515000,-500.0,0.00014999,2]
[421985581,1778405515000,-500.0,0.00014999,2]
[421985589,1778405515000,-1254.41808677,0.00015,2]
[421985590,1778405515000,-26483.85920591,0.00015,2]
[421985591,1778405515000,-380.52932165,0.00015,2]
[421985592,1778405515000,-3193660.92258722,0.00015,2]
[421985593,1778405515000,-787.38,0.00015,2]
[421985594,1778405515000,-151.0,0.00015,2]
[421985595,1778405515000,-189.39503445,0.00015,2]
[421985597,1778405515000,-151.0,0.00015,2]
[421985588,1778405515000,-248477.4005848,0.00015,2]
[421985598,1778405515000,-151.0,0.00015,2]
[421985599,1778405515000,-151.0,0.00015,2]
[421985662,1778405516000,-2000.0,0.00018589,2]
[421985660,1778405516000,-585.72,0.00018448,2]
[421985664,1778405516000,-292.15608919,0.000187,2]
[421985663,1778405516000,-500.0,0.0001863,2]
[421985661,1778405516000,-292.15608919,0.000185,2]
[421985659,1778405516000,-292.15608919,0.000184,2]
[421985658,1778405516000,-169.63,0.00018296,2]
[421985657,1778405516000,-292.15608919,0.000182,2]
[421985654,1778405516000,-350.0,0.00018,2]
[421985666,1778405516000,-200.0,0.00019106,2]
[421985656,1778405516000,-2000.0,0.00018082,2]
[421985655,1778405516000,-292.15608919,0.00018,2]
[421985665,1778405516000,-336.89471089,0.00019,2]
[421985675,1778405516000,-10589.47187993,0.0002,2]
[421985670,1778405516000,-959.41321745,0.000194,2]
[421985668,1778405516000,-151.0,0.00019178,2]
[421985672,1778405516000,-251.80533648,0.00019726,2]
[421985671,1778405516000,-736.2226437,0.00019571,2]
[421985667,1778405516000,-151.0,0.00019178,2]
[421985674,1778405516000,-243.653,0.0001996,2]
[421985673,1778405516000,-4989.54123953,0.000199,3]
[421985676,1778405516000,-2983.70950196,0.0002,7]
[421985677,1778405516000,-537.21649275,0.0002,7]
[421985681,1778405516000,-527.46560597,0.0002012,2]
[421985680,1778405516000,-227.0,0.0002,2]
[421985653,1778405516000,-313.86,0.000178,2]
[421985669,1778405516000,-150.0,0.00019178,2]
[421985650,1778405516000,-151.51,0.00017546,2]
[421985627,1778405516000,-500.0,0.00016438,2]
[421985651,1778405516000,-403.0,0.000177,5]
[421985623,1778405516000,-161.5894468,0.00016,2]
[421985624,1778405516000,-300.0,0.00016,2]
[421985625,1778405516000,-5029.43745912,0.0001627,2]
[421985628,1778405516000,-501.3427202,0.00016438,2]
[421985629,1778405516000,-500.0,0.00016438,2]
[421985626,1778405516000,-477.12,0.00016421,2]
[421985630,1778405516000,-500.0,0.00016438,2]
[421985632,1778405516000,-500.0,0.00016438,2]
[421985636,1778405516000,-477.12,0.00016695,2]
[421985635,1778405516000,-237.26861728,0.00016453,2]
[421985633,1778405516000,-500.0,0.00016438,2]
[421985631,1778405516000,-204.531744,0.00016438,2]
[421985634,1778405516000,-318.45392843,0.00016438,2]
[421985637,1778405516000,-585.72,0.00016771,2]
[421985639,1778405516000,-615.66,0.00016969,2]
[421985638,1778405516000,-169.63,0.00016771,2]
[421985640,1778405516000,-502.27455724,0.00016986,2]
[421985641,1778405516000,-1087.85506143,0.00016986,2]
[421985642,1778405516000,-1000.0,0.00016986,2]
[421985644,1778405516000,-1000.0,0.00016986,2]
[421985645,1778405516000,-2000.0,0.0001704,2]
[421985643,1778405516000,-505.03667295,0.00016986,2]
[421985646,1778405516000,-500.0,0.00017068,2]
[421985647,1778405516000,-2667.82,0.00017169,2]
[421985678,1778405516000,-154.0,0.0002,2]
[421985652,1778405516000,-471.09,0.000178,2]
[421985649,1778405516000,-500.0,0.00017534,2]
[421985648,1778405516000,-1500.0,0.00017534,2]
[421985682,1778405516000,-585.72,0.00020125,2]
[421985720,1778405516000,-158.39,0.00024658,2]
[421985684,1778405516000,-21781.22,0.00020548,2]
[421985714,1778405516000,-442.74,0.00024174,2]
[421985719,1778405516000,-151.04,0.00024658,2]
[421985717,1778405516000,-1000.0,0.00024658,2]
[421985715,1778405516000,-500.0,0.00024397,2]
[421985718,1778405516000,-158.85,0.00024658,2]
[421985721,1778405516000,-151.54,0.00024658,2]
[421985724,1778405516000,-320.29275461,0.00025,2]
[421985722,1778405516000,-158.85,0.00024931,7]
[421985723,1778405516000,-158.39,0.00024931,7]
[421985725,1778405516000,-231.56045727,0.00025,2]
[421985726,1778405516000,-151.04,0.00025114,7]
[421985729,1778405516000,-174.61919141,0.00025154,2]
[421985716,1778405516000,-180.82,0.00024658,2]
[421985728,1778405516000,-151.0,0.00025154,2]
[421985730,1778405516000,-158.85,0.00025205,30]
[421985727,1778405516000,-151.54,0.00025114,7]
[421985732,1778405516000,-151.0,0.00025209,2]
[421985733,1778405516000,-151.0,0.00025264,2]
[421985734,1778405516000,-151.0,0.00025319,2]
[421985736,1778405516000,-500.0,0.0002539,3]
[421985735,1778405516000,-173.45152013,0.00025374,2]
[421985737,1778405516000,-181.08010149,0.00025702,2]
[421985739,1778405516000,-590.05,0.00025786,2]
[421985738,1778405516000,-530.74,0.00025786,2]
[421985741,1778405516000,-442.74,0.00025786,2]
[421985683,1778405516000,-500.0,0.0002044,2]
[421985731,1778405516000,-158.39,0.00025205,30]
[421985712,1778405516000,-278.12,0.0002411,2]
[421985740,1778405516000,-1351.65,0.00025786,2]
[421985710,1778405516000,-302.0,0.00024,2]
[421985711,1778405516000,-227.0,0.00024,2]
[421985679,1778405516000,-302.0,0.0002,2]
[421985689,1778405516000,-227.0,0.00021,2]
[421985688,1778405516000,-302.0,0.00021,2]
[421985685,1778405516000,-1000.0,0.00020988,2]
[421985686,1778405516000,-1228.98093343,0.00021,7]
[421985687,1778405516000,-154.0,0.00021,2]
[421985691,1778405516000,-985.16597495,0.00021536,2]
[421985694,1778405516000,-5000.0,0.00021918,2]
[421985692,1778405516000,-164.2734764,0.00021765,2]
[421985693,1778405516000,-257.636493,0.00021918,2]
[421985695,1778405516000,-1122.70591413,0.00022,4]
[421985696,1778405516000,-154.0,0.00022,2]
[421985690,1778405516000,-590.05,0.00021273,2]
[421985698,1778405516000,-227.0,0.00022,2]
[421985697,1778405516000,-302.0,0.00022,2]
[421985709,1778405516000,-959.41321745,0.000239,2]
[421985704,1778405516000,-169.5468363,0.00023,2]
[421985707,1778405516000,-314.06182482,0.0002314,2]
[421985708,1778405516000,-209.23322645,0.0002314,2]
[421985706,1778405516000,-227.0,0.00023,2]
[421985713,1778405516000,-1351.65,0.00024174,2]
[421985705,1778405516000,-302.0,0.00023,2]
[421985699,1778405516000,-317.85,0.00022466,2]
[421985701,1778405516000,-150.0,0.0002296,2]
[421985702,1778405516000,-787.38,0.00023,7]